[Event "MČR juniorů a juniorek v rapid šachu 2024"]
[Site "Hotel Fit Fun, Harrachov, Czech Republic"]
[Date "2024.09.21"]
[Round "1.1"]
[White "Jun Rudolf"]
[Black "Stastna Martina"]
[Result "0-1"]
[TimeControl "20+5"]
[WhiteFideId "376612"]
[BlackFideId "385123"]
[WhiteElo "2142"]
[BlackElo "1801"]

1. c4 {[%clk 00:20:07]} {[%emt 00:00:03]} e6 {[%clk 00:20:06]} {[%emt
00:00:05]} 2. g3 {[%clk 00:19:39]} {[%emt 00:00:32]} Nf6 {[%clk 00:19:38]}
{[%emt 00:00:34]} 3. Bg2 {[%clk 00:19:41]} {[%emt 00:00:02]} d5 {[%clk
00:19:35]} {[%emt 00:00:08]} 4. cxd5 {[%clk 00:19:44]} {[%emt 00:00:03]} exd5
{[%clk 00:19:35]} {[%emt 00:00:06]} 5. d4 {[%clk 00:19:36]} {[%emt 00:00:12]}
c6 {[%clk 00:19:08]} {[%emt 00:00:33]} 6. Nc3 {[%clk 00:19:19]} {[%emt
00:00:22]} Bb4 {[%clk 00:18:32]} {[%emt 00:00:42]} 7. Bd2 {[%clk 00:17:42]}
{[%emt 00:01:41]} a5 {[%clk 00:15:56]} {[%emt 00:02:41]} 8. Nf3 {[%clk
00:16:46]} {[%emt 00:01:00]} O-O {[%clk 00:15:48]} {[%emt 00:00:13]} 9. O-O
{[%clk 00:16:33]} {[%emt 00:00:17]} Re8 {[%clk 00:15:11]} {[%emt 00:00:44]} 10.
Ne5 {[%clk 00:15:50]} {[%emt 00:00:48]} Nbd7 {[%clk 00:14:39]} {[%emt
00:00:37]} 11. Nd3 {[%clk 00:15:52]} {[%emt 00:00:02]} Bd6 {[%clk 00:14:08]}
{[%emt 00:00:37]} 12. Re1 {[%clk 00:14:23]} {[%emt 00:01:34]} Ne4 {[%clk
00:13:12]} {[%emt 00:01:00]} 13. Bc1 {[%clk 00:12:52]} {[%emt 00:01:37]} Nxc3
{[%clk 00:10:40]} {[%emt 00:02:37]} 14. bxc3 {[%clk 00:12:53]} {[%emt
00:00:03]} b5 {[%clk 00:09:50]} {[%emt 00:00:56]} 15. e4 {[%clk 00:09:16]}
{[%emt 00:03:41]} dxe4 {[%clk 00:09:47]} {[%emt 00:00:08]} 16. Bxe4 {[%clk
00:09:06]} {[%emt 00:00:14]} Bb7 {[%clk 00:09:29]} {[%emt 00:00:24]} 17. Bf4
{[%clk 00:08:22]} {[%emt 00:00:48]} Bxf4 {[%clk 00:08:43]} {[%emt 00:00:52]} 18.
Nxf4 {[%clk 00:08:24]} {[%emt 00:00:02]} Nf6 {[%clk 00:08:45]} {[%emt
00:00:04]} 19. Bg2 {[%clk 00:07:37]} {[%emt 00:00:51]} Qc7 {[%clk 00:07:31]}
{[%emt 00:01:20]} 20. Qd2 {[%clk 00:07:03]} {[%emt 00:00:39]} Rad8 {[%clk
00:06:35]} {[%emt 00:01:01]} 21. Nd3 {[%clk 00:05:48]} {[%emt 00:01:20]} Nd5
{[%clk 00:05:45]} {[%emt 00:00:55]} 22. Nc5 {[%clk 00:04:57]} {[%emt 00:00:55]}
Bc8 {[%clk 00:05:18]} {[%emt 00:00:33]} 23. Qd3 {[%clk 00:04:06]} {[%emt
00:00:56]} Qd6 {[%clk 00:04:21]} {[%emt 00:01:02]} 24. a3 {[%clk 00:02:30]}
{[%emt 00:01:40]} g6 {[%clk 00:02:48]} {[%emt 00:01:39]} 25. Qd2 {[%clk
00:01:50]} {[%emt 00:00:45]} Kg7 {[%clk 00:02:38]} {[%emt 00:00:14]} 26. h4
{[%clk 00:01:45]} {[%emt 00:00:10]} Nf6 {[%clk 00:02:14]} {[%emt 00:00:30]} 27.
Rxe8 {[%clk 00:01:03]} {[%emt 00:00:47]} Rxe8 {[%clk 00:02:17]} {[%emt
00:00:02]} 28. Re1 {[%clk 00:01:01]} {[%emt 00:00:07]} Be6 {[%clk 00:02:08]}
{[%emt 00:00:14]} 29. Qg5 {[%clk 00:00:19]} {[%emt 00:00:47]} Bd5 {[%clk
00:01:50]} {[%emt 00:00:23]} 30. Rxe8 {[%clk 00:00:12]} {[%emt 00:00:11]} Nxe8
{[%clk 00:01:54]} {[%emt 00:00:02]} 31. Bxd5 {[%clk 00:00:14]} {[%emt
00:00:03]} cxd5 {[%clk 00:01:52]} {[%emt 00:00:07]} 32. Qe5+ {[%clk 00:00:07]}
{[%emt 00:00:12]} Qxe5 {[%clk 00:01:49]} {[%emt 00:00:08]} 33. dxe5 {[%clk
00:00:11]} Nc7 {[%clk 00:01:52]} {[%emt 00:00:02]} 34. Nb7 {[%clk 00:00:09]}
{[%emt 00:00:07]} a4 {[%clk 00:01:49]} {[%emt 00:00:09]} 35. f4 {[%clk
00:00:10]} {[%emt 00:00:03]} f6 {[%clk 00:01:42]} {[%emt 00:00:11]} 36. Kf2
{[%clk 00:00:08]} {[%emt 00:00:08]} fxe5 {[%clk 00:01:33]} {[%emt 00:00:14]} 37.
fxe5 {[%clk 00:00:11]} {[%emt 00:00:02]} Kf7 {[%clk 00:01:37]} 38. Ke3 {[%clk
00:00:08]} {[%emt 00:00:08]} Ke6 {[%clk 00:01:33]} {[%emt 00:00:10]} 39. Kf4
{[%clk 00:00:12]} {[%emt 00:00:01]} Na6 {[%clk 00:01:28]} {[%emt 00:00:09]} 40.
Nd6 {[%clk 00:00:08]} {[%emt 00:00:09]} Nc5 {[%clk 00:01:31]} {[%emt 00:00:03]}
41. Nxb5 {[%clk 00:00:07]} {[%emt 00:00:06]} Nd3+ {[%clk 00:01:30]} {[%emt
00:00:06]} 42. Kg5 {[%clk 00:00:06]} {[%emt 00:00:06]} Nxe5 {[%clk 00:01:16]}
{[%emt 00:00:19]} 43. Nd4+ {[%emt 00:00:02]} Kf7 {[%clk 00:01:06]} {[%emt
00:00:14]} 44. Kh6 {[%clk 00:00:07]} {[%emt 00:00:08]} Kg8 {[%clk 00:01:09]}
{[%emt 00:00:02]} 45. Kg5 {[%clk 00:00:09]} {[%emt 00:00:02]} Kf7 {[%clk
00:01:12]} {[%emt 00:00:03]} 46. Kh6 {[%clk 00:00:08]} {[%emt 00:00:06]} Kg8
{[%clk 00:01:16]} {[%emt 00:00:01]} 47. h5 {[%clk 00:00:09]} {[%emt 00:00:05]}
Nf7# {[%clk 00:01:20]} 0-1



[ePGN "0.1;DGT LiveChess/2.2.6"]

[Event "MČR juniorů a juniorek v rapid šachu 2024"]
[Site "Hotel Fit Fun, Harrachov, Czech Republic"]
[Date "2024.09.21"]
[Round "1.10"]
[White "Fousek Petr"]
[Black "Lihotsky Lukas"]
[Result "0-1"]
[TimeControl "20+5"]
[WhiteFideId "23736003"]
[BlackFideId "23727004"]
[WhiteElo "1731"]
[BlackElo "1975"]

1. e4 {[%clk 00:20:06]} {[%emt 00:00:03]} c6 {[%clk 00:20:09]} 2. d4 {[%clk
00:20:08]} {[%emt 00:00:03]} d5 {[%clk 00:20:14]} 3. e5 {[%clk 00:20:05]}
{[%emt 00:00:08]} Bf5 {[%clk 00:20:17]} {[%emt 00:00:02]} 4. h4 {[%clk
00:20:08]} {[%emt 00:00:02]} h5 {[%clk 00:20:20]} {[%emt 00:00:01]} 5. Bd3
{[%clk 00:20:04]} {[%emt 00:00:10]} Bxd3 {[%clk 00:20:24]} {[%emt 00:00:01]} 6.
Qxd3 {[%clk 00:20:07]} {[%emt 00:00:02]} Qa5+ {[%clk 00:20:28]} 7. c3 {[%clk
00:19:38]} {[%emt 00:00:34]} e6 {[%clk 00:20:17]} {[%emt 00:00:15]} 8. b4
{[%clk 00:19:17]} {[%emt 00:00:27]} Qa6 {[%clk 00:20:20]} {[%emt 00:00:02]} 9.
Qxa6 {[%clk 00:19:09]} {[%emt 00:00:13]} Nxa6 {[%clk 00:20:21]} {[%emt
00:00:04]} 10. Nf3 {[%clk 00:19:08]} {[%emt 00:00:05]} Nb8 {[%clk 00:16:38]}
{[%emt 00:03:49]} 11. a4 {[%clk 00:17:04]} {[%emt 00:02:09]} Nd7 {[%clk
00:15:54]} {[%emt 00:00:49]} 12. O-O {[%clk 00:16:14]} {[%emt 00:00:54]} f6
{[%clk 00:14:59]} {[%emt 00:01:00]} 13. Re1 {[%clk 00:14:53]} {[%emt 00:01:27]}
Kf7 {[%clk 00:15:01]} {[%emt 00:00:03]} 14. Nbd2 {[%clk 00:14:35]} {[%emt
00:00:22]} Ne7 {[%clk 00:14:10]} {[%emt 00:00:56]} 15. Nb3 {[%clk 00:13:39]}
{[%emt 00:01:02]} b6 {[%clk 00:10:31]} {[%emt 00:03:45]} 16. a5 {[%clk
00:13:03]} {[%emt 00:00:41]} b5 {[%clk 00:10:10]} {[%emt 00:00:25]} 17. a6
{[%clk 00:12:38]} {[%emt 00:00:30]} Ng6 {[%clk 00:09:32]} {[%emt 00:00:43]} 18.
g3 {[%clk 00:11:42]} {[%emt 00:01:01]} Be7 {[%clk 00:09:32]} {[%emt 00:00:05]}
19. Na5 {[%clk 00:11:23]} {[%emt 00:00:24]} Rac8 {[%clk 00:09:32]} {[%emt
00:00:05]} 20. Bd2 {[%clk 00:10:28]} {[%emt 00:01:00]} Bd8 {[%clk 00:06:21]}
{[%emt 00:03:16]} 21. Nb7 {[%clk 00:09:43]} {[%emt 00:00:50]} Bc7 {[%clk
00:06:22]} {[%emt 00:00:04]} 22. Bf4 {[%clk 00:07:57]} {[%emt 00:01:51]} Rce8
{[%clk 00:02:24]} {[%emt 00:04:03]} 23. exf6 {[%clk 00:07:22]} {[%emt
00:00:40]} Nxf4 {[%clk 00:02:22]} {[%emt 00:00:06]} 24. fxg7 {[%clk 00:06:37]}
{[%emt 00:00:51]} Rhg8 {[%clk 00:02:03]} {[%emt 00:00:24]} 25. gxf4 {[%clk
00:04:45]} {[%emt 00:01:57]} Bxf4 {[%clk 00:01:22]} {[%emt 00:00:45]} 26. Kh1
{[%clk 00:03:34]} {[%emt 00:01:17]} Rxg7 {[%clk 00:00:54]} {[%emt 00:00:34]} 27.
Ne5+ {[%clk 00:03:07]} {[%emt 00:00:32]} Bxe5 {[%clk 00:00:52]} {[%emt
00:00:07]} 28. dxe5 {[%clk 00:03:09]} {[%emt 00:00:03]} Reg8 {[%clk 00:00:46]}
{[%emt 00:00:11]} 29. Re3 {[%clk 00:02:21]} {[%emt 00:00:52]} Ke7 {[%clk
00:00:11]} {[%emt 00:00:41]} 30. Rae1 {[%clk 00:01:39]} {[%emt 00:00:47]} Rg4
{[%clk 00:00:13]} {[%emt 00:00:03]} 31. Kh2 {[%clk 00:01:05]} {[%emt 00:00:39]}
Rxh4+ {[%clk 00:00:12]} {[%emt 00:00:06]} 32. Rh3 {[%clk 00:01:09]} Rxh3+
{[%clk 00:00:12]} {[%emt 00:00:05]} 33. Kxh3 {[%clk 00:01:13]} {[%emt
00:00:01]} Rg4 {[%clk 00:00:12]} {[%emt 00:00:04]} 34. f3 {[%clk 00:01:04]}
{[%emt 00:00:15]} Rc4 {[%clk 00:00:13]} {[%emt 00:00:04]} 35. Re3 {[%clk
00:00:28]} {[%emt 00:00:41]} d4 {[%clk 00:00:13]} {[%emt 00:00:05]} 36. cxd4
{[%clk 00:00:22]} {[%emt 00:00:12]} Rxd4 {[%clk 00:00:16]} 37. Re4 {[%clk
00:00:14]} {[%emt 00:00:13]} Rxe4 {[%clk 00:00:17]} {[%emt 00:00:04]} 38. fxe4
{[%clk 00:00:17]} {[%emt 00:00:02]} Nxe5 {[%clk 00:00:17]} {[%emt 00:00:05]} 39.
Nc5 {[%clk 00:00:14]} {[%emt 00:00:09]} Kd6 {[%clk 00:00:14]} {[%emt 00:00:07]}
40. Kh4 {[%clk 00:00:16]} {[%emt 00:00:03]} Nd7 {[%clk 00:00:10]} {[%emt
00:00:09]} 0-1



[ePGN "0.1;DGT LiveChess/2.2.6"]

[Event "MČR juniorů a juniorek v rapid šachu 2024"]
[Site "Hotel Fit Fun, Harrachov, Czech Republic"]
[Date "2024.09.21"]
[Round "1.11"]
[White "Bezdek Tomas"]
[Black "Boff Vojtech"]
[Result "1/2-1/2"]
[TimeControl "20+5"]
[WhiteFideId "23733551"]
[BlackFideId "23733969"]
[WhiteElo "1973"]
[BlackElo "1719"]

1. d4 {[%clk 00:20:08]} {[%emt 00:00:02]} Nf6 {[%clk 00:20:08]} {[%emt
00:00:02]} 2. c4 {[%clk 00:20:12]} e6 {[%clk 00:20:12]} {[%emt 00:00:03]} 3. g3
{[%clk 00:20:16]} {[%emt 00:00:02]} d5 {[%clk 00:20:10]} {[%emt 00:00:06]} 4.
Bg2 {[%clk 00:20:19]} {[%emt 00:00:02]} c6 {[%clk 00:20:11]} {[%emt 00:00:05]}
5. Nf3 {[%clk 00:20:19]} {[%emt 00:00:05]} Be7 {[%clk 00:20:05]} {[%emt
00:00:11]} 6. O-O {[%clk 00:20:17]} {[%emt 00:00:07]} O-O {[%clk 00:20:07]}
{[%emt 00:00:03]} 7. b3 {[%clk 00:20:21]} Nbd7 {[%clk 00:19:46]} {[%emt
00:00:25]} 8. Nc3 {[%clk 00:20:23]} {[%emt 00:00:03]} b6 {[%clk 00:19:48]}
{[%emt 00:00:04]} 9. Nd2 {[%clk 00:20:23]} {[%emt 00:00:04]} Bb7 {[%clk
00:19:45]} {[%emt 00:00:08]} 10. e4 {[%clk 00:20:27]} {[%emt 00:00:02]} dxe4
{[%clk 00:19:47]} {[%emt 00:00:04]} 11. Ndxe4 {[%clk 00:20:29]} {[%emt
00:00:02]} Nxe4 {[%clk 00:19:44]} {[%emt 00:00:07]} 12. Nxe4 {[%clk 00:20:30]}
{[%emt 00:00:04]} Nf6 {[%clk 00:19:47]} {[%emt 00:00:03]} 13. Bb2 {[%clk
00:20:28]} {[%emt 00:00:07]} Nxe4 {[%clk 00:19:48]} {[%emt 00:00:04]} 14. Bxe4
{[%clk 00:20:31]} {[%emt 00:00:02]} Bf6 {[%clk 00:19:49]} {[%emt 00:00:05]} 15.
Qd3 {[%clk 00:19:14]} {[%emt 00:01:22]} g6 {[%clk 00:19:12]} {[%emt 00:00:42]}
16. Rad1 {[%clk 00:17:17]} {[%emt 00:02:01]} Qe7 {[%clk 00:18:06]} {[%emt
00:01:11]} 17. Qf3 {[%clk 00:15:44]} {[%emt 00:01:38]} Rac8 {[%clk 00:16:53]}
{[%emt 00:01:18]} 18. Rfe1 {[%clk 00:15:25]} {[%emt 00:00:24]} Rfd8 {[%clk
00:15:52]} {[%emt 00:01:07]} 19. h4 {[%clk 00:13:20]} {[%emt 00:02:10]} h5
{[%clk 00:14:28]} {[%emt 00:01:29]} 20. Rd3 {[%clk 00:08:37]} {[%emt 00:04:48]}
Rd7 {[%clk 00:13:16]} {[%emt 00:01:15]} 21. Red1 {[%clk 00:07:53]} {[%emt
00:00:51]} Bg7 {[%clk 00:12:22]} {[%emt 00:01:00]} 22. Qe2 {[%clk 00:07:17]}
{[%emt 00:00:40]} Rcd8 {[%clk 00:12:02]} {[%emt 00:00:24]} 23. Bg2 {[%clk
00:04:22]} {[%emt 00:03:00]} Qf8 {[%clk 00:09:27]} {[%emt 00:02:40]} 24. g4
{[%clk 00:03:13]} {[%emt 00:01:14]} hxg4 {[%clk 00:09:19]} {[%emt 00:00:14]} 25.
Qxg4 {[%clk 00:03:17]} {[%emt 00:00:01]} Qe7 {[%clk 00:08:57]} {[%emt
00:00:27]} 26. h5 {[%clk 00:02:49]} {[%emt 00:00:33]} gxh5 {[%clk 00:07:56]}
{[%emt 00:01:06]} 27. Qxh5 {[%clk 00:02:52]} {[%emt 00:00:01]} Qf6 {[%clk
00:07:56]} {[%emt 00:00:06]} 28. Rg3 {[%clk 00:01:36]} {[%emt 00:01:22]} Kf8
{[%clk 00:07:14]} {[%emt 00:00:46]} 29. Rdd3 {[%clk 00:01:01]} {[%emt
00:00:40]} Qh6 {[%clk 00:07:07]} {[%emt 00:00:12]} 30. Qg4 {[%clk 00:00:43]}
{[%emt 00:00:23]} f5 {[%clk 00:06:58]} {[%emt 00:00:15]} 31. Qe2 {[%clk
00:00:20]} {[%emt 00:00:28]} Bxd4 {[%clk 00:06:22]} {[%emt 00:00:41]} 32. Rh3
{[%clk 00:00:15]} {[%emt 00:00:09]} Qf6 {[%clk 00:06:06]} {[%emt 00:00:22]} 33.
Ba3+ {[%clk 00:00:12]} {[%emt 00:00:08]} c5 {[%clk 00:06:03]} {[%emt 00:00:08]}
34. Bxb7 {[%clk 00:00:11]} {[%emt 00:00:06]} Rxb7 {[%clk 00:06:07]} {[%emt
00:00:01]} 35. Rdg3 {[%clk 00:00:10]} {[%emt 00:00:07]} Rg7 {[%clk 00:05:52]}
{[%emt 00:00:19]} 36. Rxg7 {[%clk 00:00:11]} {[%emt 00:00:04]} Qxg7+ {[%clk
00:05:55]} {[%emt 00:00:01]} 37. Kf1 {[%clk 00:00:11]} {[%emt 00:00:06]} Kf7
{[%clk 00:05:12]} {[%emt 00:00:47]} 38. Qf3 {[%clk 00:00:14]} {[%emt 00:00:03]}
Rd7 {[%clk 00:03:37]} {[%emt 00:01:41]} 39. Bc1 {[%clk 00:00:18]} Be5 {[%clk
00:02:50]} {[%emt 00:00:51]} 40. Bh6 {[%clk 00:00:16]} {[%emt 00:00:07]} Qg4
{[%clk 00:02:50]} {[%emt 00:00:05]} 41. Qxg4 {[%clk 00:00:15]} {[%emt
00:00:07]} fxg4 {[%clk 00:02:54]} 42. Re3 {[%clk 00:00:19]} Bf6 {[%clk
00:02:34]} {[%emt 00:00:24]} 43. Re4 {[%clk 00:00:20]} {[%emt 00:00:04]} Rd4
{[%clk 00:02:37]} {[%emt 00:00:03]} 44. Re2 {[%clk 00:00:21]} {[%emt 00:00:04]}
e5 {[%clk 00:02:16]} {[%emt 00:00:26]} 45. Kg2 {[%clk 00:00:23]} {[%emt
00:00:03]} Kg6 {[%clk 00:02:09]} {[%emt 00:00:13]} 46. Be3 {[%clk 00:00:24]}
{[%emt 00:00:04]} Re4 {[%clk 00:01:54]} {[%emt 00:00:20]} 47. Rd2 {[%clk
00:00:26]} {[%emt 00:00:03]} Bg5 {[%clk 00:01:51]} {[%emt 00:00:07]} 48. Rd6+
{[%clk 00:00:19]} {[%emt 00:00:12]} Kf5 {[%clk 00:01:55]} 49. Bxg5 {[%clk
00:00:13]} {[%emt 00:00:11]} Kxg5 {[%clk 00:01:59]} 50. Rd7 {[%clk 00:00:17]}
{[%emt 00:00:02]} a5 {[%clk 00:01:59]} {[%emt 00:00:05]} 51. Rd6 {[%clk
00:00:20]} {[%emt 00:00:02]} Re2 {[%clk 00:02:02]} {[%emt 00:00:02]} 52. a4
{[%clk 00:00:24]} {[%emt 00:00:02]} e4 {[%clk 00:01:59]} {[%emt 00:00:07]} 53.
Kf1 {[%clk 00:00:15]} {[%emt 00:00:14]} Rb2 {[%clk 00:01:56]} {[%emt 00:00:08]}
54. Rxb6 {[%clk 00:00:18]} {[%emt 00:00:02]} Kf4 {[%clk 00:01:56]} {[%emt
00:00:04]} 55. Rf6+ {[%clk 00:00:20]} {[%emt 00:00:04]} Ke5 {[%clk 00:01:59]}
{[%emt 00:00:02]} 56. Rc6 {[%clk 00:00:18]} {[%emt 00:00:06]} Kd4 {[%clk
00:02:00]} {[%emt 00:00:05]} 57. Rb6 {[%clk 00:00:14]} {[%emt 00:00:10]} Kc3
{[%clk 00:01:57]} {[%emt 00:00:07]} 58. Rb5 {[%clk 00:00:17]} {[%emt 00:00:02]}
Rxb3 {[%clk 00:01:56]} {[%emt 00:00:06]} 59. Rxc5 {[%clk 00:00:21]} {[%emt
00:00:01]} Rb4 {[%clk 00:01:59]} {[%emt 00:00:02]} 60. Rxa5 {[%clk 00:00:24]}
{[%emt 00:00:02]} Kxc4 {[%clk 00:02:00]} {[%emt 00:00:04]} 61. Ra8 {[%clk
00:00:26]} {[%emt 00:00:03]} Rb1+ {[%clk 00:01:59]} {[%emt 00:00:06]} 62. Kg2
{[%clk 00:00:27]} {[%emt 00:00:04]} Ra1 {[%clk 00:02:03]} {[%emt 00:00:01]} 63.
Kg3 {[%clk 00:00:30]} {[%emt 00:00:02]} Ra2 {[%clk 00:02:02]} {[%emt 00:00:07]}
64. a5 {[%emt 00:00:02]} Kb5 {[%clk 00:02:04]} {[%emt 00:00:02]} 65. a6 {[%clk
00:00:35]} {[%emt 00:00:04]} Kb6 {[%clk 00:01:25]} {[%emt 00:00:44]} 66. Re8
{[%clk 00:00:33]} {[%emt 00:00:06]} Re2 {[%clk 00:01:11]} {[%emt 00:00:20]} 67.
Re6+ {[%clk 00:00:32]} {[%emt 00:00:07]} Ka7 {[%clk 00:01:14]} 68. Rf6 {[%clk
00:00:17]} {[%emt 00:00:20]} e3 {[%clk 00:01:08]} {[%emt 00:00:11]} 69. fxe3
{[%clk 00:00:17]} {[%emt 00:00:05]} Rxe3+ {[%clk 00:01:12]} 70. Kxg4 {[%clk
00:00:21]} {[%emt 00:00:01]} Ra3 {[%clk 00:01:16]} {[%emt 00:00:02]} 1/2-1/2



[ePGN "0.1;DGT LiveChess/2.2.6"]

[Event "MČR juniorů a juniorek v rapid šachu 2024"]
[Site "Hotel Fit Fun, Harrachov, Czech Republic"]
[Date "2024.09.21"]
[Round "1.12"]
[White "Tichy Richard"]
[Black "Rousek Jan"]
[Result "0-1"]
[TimeControl "20+5"]
[WhiteFideId "23727063"]
[BlackFideId "386669"]
[WhiteElo "1698"]
[BlackElo "1958"]

1. Nf3 {[%clk 00:20:08]} {[%emt 00:00:01]} c5 {[%clk 00:20:01]} {[%emt
00:00:09]} 2. c4 {[%clk 00:20:12]} {[%emt 00:00:02]} Nf6 {[%clk 00:19:56]}
{[%emt 00:00:09]} 3. g3 {[%clk 00:20:07]} {[%emt 00:00:10]} g6 {[%clk
00:19:55]} {[%emt 00:00:06]} 4. Bg2 {[%clk 00:20:11]} {[%emt 00:00:02]} Bg7
{[%clk 00:19:58]} {[%emt 00:00:01]} 5. d4 {[%clk 00:20:11]} {[%emt 00:00:06]}
cxd4 {[%clk 00:19:52]} {[%emt 00:00:11]} 6. Nxd4 {[%clk 00:20:13]} {[%emt
00:00:03]} Nc6 {[%clk 00:19:46]} {[%emt 00:00:11]} 7. Be3 {[%clk 00:20:04]}
{[%emt 00:00:14]} Ng4 {[%clk 00:17:23]} {[%emt 00:02:27]} 8. O-O {[%clk
00:19:16]} {[%emt 00:00:53]} Nxe3 {[%clk 00:17:00]} {[%emt 00:00:27]} 9. fxe3
{[%clk 00:18:36]} {[%emt 00:00:45]} O-O {[%clk 00:16:54]} {[%emt 00:00:11]} 10.
Qd2 {[%clk 00:18:11]} {[%emt 00:00:30]} Qb6 {[%clk 00:13:44]} {[%emt 00:03:15]}
11. Rd1 {[%clk 00:14:09]} {[%emt 00:04:08]} Bh6 {[%clk 00:12:54]} {[%emt
00:00:55]} 12. Qc3 {[%clk 00:10:33]} {[%emt 00:03:41]} Bg7 {[%clk 00:06:46]}
{[%emt 00:06:13]} 13. c5 {[%clk 00:08:13]} {[%emt 00:02:25]} Qc7 {[%clk
00:06:33]} {[%emt 00:00:18]} 14. Na3 {[%clk 00:05:11]} {[%emt 00:03:07]} Nxd4
{[%clk 00:04:26]} {[%emt 00:02:12]} 15. exd4 {[%clk 00:03:28]} {[%emt
00:01:48]} d6 {[%clk 00:04:26]} {[%emt 00:00:05]} 16. Nb5 {[%clk 00:03:17]}
{[%emt 00:00:16]} Qd7 {[%clk 00:04:28]} {[%emt 00:00:04]} 17. c6 {[%clk
00:01:35]} {[%emt 00:01:46]} Qf5 {[%clk 00:03:35]} {[%emt 00:00:58]} 18. cxb7
{[%clk 00:01:34]} {[%emt 00:00:06]} Bxb7 {[%clk 00:02:21]} {[%emt 00:01:19]} 19.
Bxb7 {[%clk 00:01:38]} {[%emt 00:00:02]} Rab8 {[%clk 00:02:23]} {[%emt
00:00:03]} 20. e4 {[%clk 00:01:09]} {[%emt 00:00:34]} Qxb5 {[%clk 00:02:25]}
{[%emt 00:00:04]} 21. Bc6 {[%clk 00:00:48]} {[%emt 00:00:25]} Qxb2 {[%clk
00:02:18]} {[%emt 00:00:12]} 22. Qxb2 {[%clk 00:00:13]} {[%emt 00:00:40]} Rxb2
{[%clk 00:02:21]} {[%emt 00:00:02]} 23. a4 {[%clk 00:00:11]} {[%emt 00:00:07]}
Rb4 {[%clk 00:02:06]} {[%emt 00:00:19]} 0-1



[ePGN "0.1;DGT LiveChess/2.2.6"]

[Event "MČR juniorů a juniorek v rapid šachu 2024"]
[Site "Hotel Fit Fun, Harrachov, Czech Republic"]
[Date "2024.09.21"]
[Round "1.13"]
[White "Slaby Matej"]
[Black "Nespora Tatana"]
[Result "1/2-1/2"]
[TimeControl "20+5"]
[WhiteFideId "23734876"]
[BlackFideId "392286"]
[WhiteElo "1948"]
[BlackElo "1697"]

1. d4 {[%clk 00:20:07]} {[%emt 00:00:02]} Nf6 {[%clk 00:16:40]} {[%emt
00:03:30]} 2. Nf3 {[%clk 00:20:10]} {[%emt 00:00:01]} g6 {[%clk 00:16:43]}
{[%emt 00:00:03]} 3. Nbd2 {[%clk 00:20:13]} {[%emt 00:00:02]} Bg7 {[%clk
00:16:46]} {[%emt 00:00:03]} 4. e4 {[%clk 00:20:16]} {[%emt 00:00:01]} d6
{[%clk 00:16:48]} {[%emt 00:00:03]} 5. Bd3 {[%clk 00:20:19]} {[%emt 00:00:02]}
O-O {[%clk 00:16:43]} {[%emt 00:00:10]} 6. O-O {[%clk 00:20:23]} {[%emt
00:00:02]} e5 {[%clk 00:16:41]} {[%emt 00:00:06]} 7. c3 {[%clk 00:20:20]}
{[%emt 00:00:08]} Nc6 {[%clk 00:16:04]} {[%emt 00:00:43]} 8. h3 {[%clk
00:19:34]} {[%emt 00:00:50]} Nh5 {[%clk 00:15:32]} {[%emt 00:00:38]} 9. dxe5
{[%clk 00:18:46]} {[%emt 00:00:53]} Nxe5 {[%clk 00:14:16]} {[%emt 00:01:21]} 10.
Nxe5 {[%clk 00:18:21]} {[%emt 00:00:29]} Bxe5 {[%clk 00:14:17]} {[%emt
00:00:04]} 11. Nf3 {[%clk 00:18:09]} {[%emt 00:00:17]} Bf4 {[%clk 00:12:31]}
{[%emt 00:01:51]} 12. Bc4 {[%clk 00:13:34]} {[%emt 00:04:40]} Qf6 {[%clk
00:10:12]} {[%emt 00:02:24]} 13. Qd4 {[%clk 00:13:14]} {[%emt 00:00:25]} Qe7
{[%clk 00:07:55]} {[%emt 00:02:22]} 14. Re1 {[%clk 00:11:27]} {[%emt 00:01:52]}
c5 {[%clk 00:05:16]} {[%emt 00:02:44]} 15. Qd3 {[%clk 00:11:18]} {[%emt
00:00:14]} Re8 {[%clk 00:05:03]} {[%emt 00:00:18]} 16. Bb5 {[%clk 00:07:23]}
{[%emt 00:04:00]} Be6 {[%clk 00:04:03]} {[%emt 00:01:05]} 17. Bxf4 {[%clk
00:05:04]} {[%emt 00:02:24]} Nxf4 {[%clk 00:04:07]} {[%emt 00:00:01]} 18. Qe3
{[%clk 00:04:56]} {[%emt 00:00:13]} g5 {[%clk 00:03:25]} {[%emt 00:00:47]} 19.
h4 {[%clk 00:04:19]} {[%emt 00:00:42]} h6 {[%clk 00:03:22]} {[%emt 00:00:09]}
20. hxg5 {[%clk 00:03:33]} {[%emt 00:00:50]} hxg5 {[%clk 00:03:26]} 21. Bxe8
{[%clk 00:03:35]} {[%emt 00:00:03]} Rxe8 {[%clk 00:03:30]} {[%emt 00:00:02]} 22.
e5 {[%clk 00:03:21]} {[%emt 00:00:18]} d5 {[%clk 00:03:10]} {[%emt 00:00:26]}
23. g3 {[%clk 00:02:46]} {[%emt 00:00:40]} Nh3+ {[%clk 00:03:14]} 24. Kg2
{[%clk 00:02:50]} g4 {[%clk 00:03:18]} {[%emt 00:00:02]} 25. Nh4 {[%clk
00:02:42]} {[%emt 00:00:13]} Kg7 {[%clk 00:02:06]} {[%emt 00:01:16]} 26. f3
{[%clk 00:02:30]} {[%emt 00:00:17]} gxf3+ {[%clk 00:01:16]} {[%emt 00:00:56]}
27. Qxf3 {[%clk 00:02:20]} {[%emt 00:00:14]} Rg8 {[%clk 00:00:36]} {[%emt
00:00:46]} 28. Qf6+ {[%clk 00:02:14]} {[%emt 00:00:11]} Qxf6 {[%clk 00:00:40]}
{[%emt 00:00:01]} 29. exf6+ {[%clk 00:02:17]} {[%emt 00:00:01]} Kxf6 {[%clk
00:00:44]} 30. Rxe6+ {[%clk 00:02:20]} {[%emt 00:00:03]} fxe6 {[%clk 00:00:41]}
{[%emt 00:00:08]} 31. Kxh3 {[%clk 00:02:23]} {[%emt 00:00:02]} e5 {[%clk
00:00:41]} {[%emt 00:00:05]} 32. Rf1+ {[%clk 00:02:27]} Ke6 {[%clk 00:00:44]}
{[%emt 00:00:02]} 33. g4 {[%clk 00:02:27]} {[%emt 00:00:05]} e4 {[%clk
00:00:41]} {[%emt 00:00:08]} 34. Ng2 {[%clk 00:02:17]} {[%emt 00:00:15]} d4
{[%clk 00:00:38]} {[%emt 00:00:09]} 35. Re1 {[%clk 00:02:07]} {[%emt 00:00:13]}
Ke5 {[%clk 00:00:24]} {[%emt 00:00:20]} 36. Kg3 {[%clk 00:01:58]} {[%emt
00:00:14]} e3 {[%clk 00:00:17]} {[%emt 00:00:12]} 37. Nxe3 {[%clk 00:01:51]}
{[%emt 00:00:13]} dxe3 {[%clk 00:00:14]} {[%emt 00:00:08]} 38. Rxe3+ {[%clk
00:01:54]} {[%emt 00:00:01]} Kd6 {[%clk 00:00:17]} {[%emt 00:00:02]} 39. Rd3+
{[%clk 00:01:57]} {[%emt 00:00:03]} Kc6 {[%clk 00:00:19]} {[%emt 00:00:02]} 40.
c4 {[%clk 00:01:59]} {[%emt 00:00:03]} Re8 {[%clk 00:00:18]} {[%emt 00:00:07]}
41. g5 {[%clk 00:01:40]} {[%emt 00:00:23]} Re2 {[%clk 00:00:22]} 42. g6 {[%clk
00:01:30]} {[%emt 00:00:12]} Re6 {[%clk 00:00:22]} {[%emt 00:00:09]} 1/2-1/2



[ePGN "0.1;DGT LiveChess/2.2.6"]